Cogmind - Beta 10.2 @@@ ROGUE MODE // 2021.01.10 @ 23:21:13 Player: MikeMulligan Result: Self-destructed Performance ------------- Evolutions (1) 500 Regions Visited (3) 600 Robots Destroyed (14) 70 Value Destroyed (368) 368 Prototype IDs (0) 0 Alien Tech Used (0) 0 Bonus (0) 0 TOTAL SCORE: 1538 Bonus ------- None Cogmind --------- Core Integrity 44/400 Matter 242/300 Energy 100/100 System Corruption 0% Temperature Cool (0) Movement Core (50) Location -9/Storage Parts ------- > --- POWER (1) -------- (None) > --- PROPULSION (2) --- (None) > --- UTILITY (3) ------ Improved Sensor Array > --- WEAPON (3) ------- (None) > --- INVENTORY (4) ---- Sensor Array Spread Laser Peak State ------------ > --- POWER ------------ Ion Engine > --- PROPULSION ------- Improved Hover Unit Improved Hover Unit > --- UTILITY ---------- Heat Sink Improved Heat Sink Improved Sensor Array > --- WEAPON ----------- Spread Laser Spread Laser Spread Laser > --- INVENTORY -------- Sensor Array Beam Cannon Light Assault Rifle [Rating: 17] Favorites ----------- Power Ion Engine Engine Ion Engine Propulsion Improved Hover Unit Leg Aluminum Leg Hover Unit Improved Hover Unit Utility Improved Heat Sink Device Improved Heat Sink Storage Small Storage Unit Weapon Spread Laser Energy Gun Spread Laser Energy Cannon Beam Cannon Ballistic Gun Light Assault Rifle Ballistic Cannon Light Cannon Build | -11 -10 -9 -9 ------- Run | Scr Mat Mat Sto Slots Evolved 2 | . . 2 . Power . | . . . . Propulsion . | . . . . Utility 1 | . . 1 . Weapon 1 | . . 1 . Parts Attached 28 | 6 14 7 1 Power 2 | 1 1 . . Engine 2 | 1 1 . . Core . | . . . . Reactor . | . . . . Propulsion 6 | 2 4 . . Treads . | . . . . Leg 4 | 2 2 . . Wheel . | . . . . Hover 2 | . 2 . . Flight . | . . . . Utility 7 | 1 4 2 . Device 5 | . 3 2 . Storage 2 | 1 1 . . Processor . | . . . . Hackware . | . . . . Protection . | . . . . Artifact . | . . . . Weapon 13 | 2 5 5 1 Energy Gun 6 | 1 3 2 . Energy Cannon 2 | . 1 1 . Ballistic Gun 4 | 1 1 2 . Ballistic Cannon 1 | . . . 1 Launcher . | . . . . Special Weapon . | . . . . Impact Weapon . | . . . . Slashing Weapon . | . . . . Piercing Weapon . | . . . . Special Melee Weapon . | . . . . Unidentified Prototypes . | . . . . Parts Lost 9 | . . 7 2 Power 1 | . . 1 . Propulsion 2 | . . 2 . Utility 1 | . . . 1 Weapon 5 | . . 4 1 Highest Loss Streak 5 | . . 5 2 Average Slot Usage (%) 86 | . 98 81 38 Engine 10 | . 14 7 . Leg 10 | . 20 . . Hover 10 | . 7 17 . Device 21 | . 17 27 20 Storage 5 | . 10 . . Energy Gun 20 | . 17 27 9 Ballistic Gun 5 | . 10 1 . Naked Turns . | . . . . Heaviest Build 17 | 11 14 17 8 Greatest Support 20 | 20 20 16 3 Greatest Overweight (x) 2 | 1 . 1 2 Average Overweight (x) . | . . . 1 Largest Inventory Capacity 12 | 6 12 4 4 Average Capacity 4 | 4 5 4 4 Most Carried 6 | 4 6 4 2 Average Carried 2 | 1 3 3 1 Final Capacity 6 | 6 4 4 4 Final Carried 3 | 1 3 1 2 Class Distribution -------------------- 76% | Mutant 23% | Skirmisher Dominant Class ---------------- Mutant | -10/Materials Skirmisher | -9/Materials Mutant | -9/Storage Resources | -11 -10 -9 -9 ----------- Run | Scr Mat Mat Sto Matter Collected 462 | 167 161 134 . Remotely . | . . . . Salvage Created 347 | . 161 178 8 Parts 23 | . 13 10 . Haulers Intercepted . | . . . . Recyclers Shooed 1 | . . 1 . Parts Field Recycled . | . . . . Retrieved Matter . | . . . . Parts Self-Destructed . | . . . . Prevented . | . . . . Kills | -11 -10 -9 -9 ------- Run | Scr Mat Mat Sto Combat Hostiles Destroyed 12 | . 4 7 1 Guns 11 | . 4 7 . Cannons 1 | . . . 1 Classes Destroyed 5 | . 3 2 . Builder 1 | . 1 . . Watcher 1 | . 1 . . Swarmer 4 | . . 3 1 Grunt 6 | . 4 2 . Sentry 2 | . . 2 . Best Kill Streak 3 | . 3 3 1 Combat Bots Only 3 | . 2 3 1 Max Kills in Single Turn 1 | . 1 1 1 Gunslinging . | . . . . Exploded . | . . . . Melee . | . . . . Uniques/NPCs Destroyed . | . . . . Combat | -11 -10 -9 -9 -------- Run | Scr Mat Mat Sto Damage Taken 992 | . 136 600 256 Core 356 | . . 183 173 Absorbed by Shields . | . . . . Core Remaining (%) 100 | 100 100 . . Volleys Fired 71 | . 24 39 8 Largest 3 | . 2 3 1 Hottest 195 | . 130 195 35 Shots Fired 123 | . 43 72 8 Gun 111 | . 43 68 . Cannon 12 | . . 4 8 Launcher . | . . . . Special . | . . . . Kinetic 46 | . 18 20 8 Thermal 77 | . 25 52 . Explosive . | . . . . Electromagnetic . | . . . . Robot Hit Streak 8 | . 8 7 2 Robot Miss Streak 6 | . 6 5 2 Penetration Max . | . . . . Secondary Targets . | . . . . Shots Hit Robots 82 | . 30 48 4 Core Hits 48 | . 19 28 1 Critical Hits 1 | . . 1 . Critical Kills 1 | . . 1 . Critical Parts Destroyed . | . . . . Melee Attacks . | . . . . Impact . | . . . . Slashing . | . . . . Piercing . | . . . . Sneak Attacks . | . . . . Combat Hostiles . | . . . . Follow-up Attacks . | . . . . Damage Inflicted 830 | . 308 438 84 Guns 711 | . 308 403 . Cannons 119 | . . 35 84 Explosions . | . . . . Melee . | . . . . Ramming . | . . . . Kinetic 257 | . 59 114 84 Thermal 573 | . 249 324 . Explosive . | . . . . Electromagnetic . | . . . . Impact . | . . . . Slashing . | . . . . Piercing . | . . . . Highest Corruption . | . . . . Average Corruption . | . . . . Corruption Purged . | . . . . Overload Shots . | . . . . Overflow Damage . | . . . . Projectiles . | . . . . Explosions . | . . . . Melee . | . . . . Knockbacks 4 | . . . 4 Impact . | . . . . Kinetic 3 | . . . 3 Secondary 1 | . . . 1 Self-Inflicted Damage . | . . . . Shots . | . . . . Rammed . | . . . . Targets Rammed . | . . . . Kicked . | . . . . Crushed . | . . . . Highest Temperature 278 | . 162 278 7 Average Temperature 68 | . 39 89 6 Received Heat Transfer 363 | . 78 231 54 Effects 1 | . . 1 . Energy Bleed 1 | . . 1 . Siege Activations . | . . . . Robots Corrupted . | . . . . Combat Hostiles . | . . . . Parts Fried . | . . . . Impact Corruptions . | . . . . Robots Melted . | . . . . Combat Hostiles . | . . . . Parts Melted 2 | . 1 1 . Heat Transferred 879 | . 435 444 . Parts Sabotaged . | . . . . Parts Stolen . | . . . . Parts Stripped . | . . . . Power Chain Reactions . | . . . . Missiles Intercepted . | . . . . Alert | -11 -10 -9 -9 ------- Run | Scr Mat Mat Sto Peak Influence 175 | . 122 175 52 Initial 20 | . . 20 12 Average 62 | . 55 87 24 Maximum Alert Level . | . . . . Low Security (%) 100 | 100 100 100 100 Level 1 . | . . . . Level 2 . | . . . . Level 3 . | . . . . Level 4 . | . . . . Level 5 . | . . . . High Security . | . . . . Max Security . | . . . . Squads Dispatched 4 | . 1 2 1 Investigation 3 | . 1 2 . Extermination . | . . . . Reinforcement 1 | . . . 1 Assault . | . . . . Garrison . | . . . . Intercept . | . . . . Construction Impeded . | . . . . Haulers Reinforced . | . . . . Stealth | -11 -10 -9 -9 --------- Run | Scr Mat Mat Sto Distress Signals 3 | . 1 1 1 Communications Jammed . | . . . . Distress Signals . | . . . . Times Spotted 31 | . 10 14 7 Peak Tracking Total 6 | . 4 6 5 Tactical Retreats 4 | . 1 3 . Traps | -11 -10 -9 -9 ------- Run | Scr Mat Mat Sto Traps Triggered 3 | . 2 1 . Indirectly . | . . . . Trap Hack Attempts . | . . . . Triggered . | . . . . Disarmed . | . . . . Reprogrammed . | . . . . Reused . | . . . . Traps Extracted . | . . . . Installed . | . . . . Triggered . | . . . . Machines | -11 -10 -9 -9 ---------- Run | Scr Mat Mat Sto Machines Disabled . | . . . . Max in Single Turn . | . . . . Machines Sabotaged . | . . . . Garrisons Compromised . | . . . . Overloaded Fab Kills . | . . . . Fab Network Shutdowns . | . . . . Hacking | -11 -10 -9 -9 --------- Run | Scr Mat Mat Sto Machines Accessed 4 | . 1 3 . Terminals 4 | . 1 3 . Fabricators . | . . . . Repair Stations . | . . . . Recycling Units . | . . . . Scanalyzers . | . . . . Garrison Access . | . . . . Total Hacks 8 | . 1 7 . Successful 7 | . . 7 . Failed 1 | . 1 . . Catastrophic 1 | . 1 . . Database Lockouts . | . . . . Manual . | . . . . Terminals 8 | . 1 7 . Fabricators . | . . . . Repair Stations . | . . . . Recycling Units . | . . . . Scanalyzers . | . . . . Garrison Access . | . . . . Terminal Hacks 7 | . . 7 . Emergency Access Points 2 | . . 2 . Alert Level 2 | . . 2 . Unreport Threat 1 | . . 1 . Dispatch Records 1 | . . 1 . Hauler Manifests 1 | . . 1 . Fabricator Hacks . | . . . . Repair Station Hacks . | . . . . Recycling Unit Hacks . | . . . . Scanalyzer . | . . . . Garrison Access Hacks . | . . . . Unauthorized Hacks . | . . . . Terminals . | . . . . Fabricators . | . . . . Repair Stations . | . . . . Recycling Units . | . . . . Scanalyzers . | . . . . Garrison Access . | . . . . Data Cores Recovered . | . . . . Used . | . . . . Hacking Detections 4 | . 1 3 . Full Trace Events 1 | . . 1 . Feedback Events . | . . . . Feedback Blocked . | . . . . Robot Schematics Acquired . | . . . . Robots Built . | . . . . Matter . | . . . . Time . | . . . . Total Robot Build Rating . | . . . . Part Schematics Acquired . | . . . . Parts Built . | . . . . Matter . | . . . . Time . | . . . . Total Part Build Rating . | . . . . Parts Repaired . | . . . . Time . | . . . . Parts Recycled . | . . . . Recycled Matter . | . . . . Retrieved Matter . | . . . . Retrieved Components . | . . . . Parts Scanalyzed . | . . . . Part Schematics Acquired . | . . . . Parts Damaged . | . . . . Bothacking | -11 -10 -9 -9 ------------ Run | Scr Mat Mat Sto Used RIF Installer . | . . . . Robots Hacked . | . . . . Non-combat . | . . . . Combat . | . . . . Robot Hacks Applied . | . . . . Relay Couplers Released . | . . . . Robots Rewired . | . . . . Allies Hacked . | . . . . Hacks Repelled . | . . . . Allies | -11 -10 -9 -9 -------- Run | Scr Mat Mat Sto Total Allies . | . . . . Largest Group . | . . . . Highest-Rated Group . | . . . . Highest-Rated Ally . | . . . . Total Orders . | . . . . Ally Attacks . | . . . . Total Damage . | . . . . Kills . | . . . . Allies Corrupted . | . . . . Allies Melted . | . . . . Intel | -11 -10 -9 -9 ------- Run | Scr Mat Mat Sto Robot Analysis Total . | . . . . Derelict Logs Recovered . | . . . . Drone Launches . | . . . . Drone Recoveries . | . . . . Exploration | -11 -10 -9 -9 ------------- Run | Scr Mat Mat Sto Turns Passed 1145 | 46 550 443 106 Spaces Moved 892 | 32 455 335 70 Core 91 | 15 . 6 70 Treads . | . . . . Legs 277 | 17 260 . . Wheels . | . . . . Hover 524 | . 195 329 . Flight . | . . . . Fastest Speed 50 | 50 56 56 50 Average Speed 93 | 107 92 88 123 Slowest Speed 150 | 120 120 120 150 Overloaded Moves . | . . . . Propulsion Burnouts . | . . . . Robots Hopped . | . . . . Cave-ins Triggered . | . . . . Exploration Rate (%) 22 | 4 41 25 18 Regions Visited 3 Branch Regions 1 Pre-discovered Areas . | . . . . Known Exits Taken . | . . . . Unknown Exits Taken 3 | 1 1 1 . Scrap Searched . | . . . . Spaces Dug . | . . . . Terrain Destroyed . | . . . . Melee . | . . . . Projectile . | . . . . AOE . | . . . . Terrain Rammed . | . . . . Walls Destroyed . | . . . . Machines Disabled . | . . . . Actions | -11 -10 -9 -9 --------- Run | Scr Mat Mat Sto Total 1094 | 42 547 424 81 Wait 66 | . 28 38 . Move 889 | 31 454 334 70 Hop . | . . . . Pick Up 25 | 5 16 3 1 Fast Attach 2 | 2 . . . Attach 20 | 4 10 5 1 Detach 3 | . 1 1 1 Swap 6 | . 4 2 . Drop 12 | . 10 2 . Fire 71 | . 24 39 8 Melee . | . . . . Ram . | . . . . Kick . | . . . . Crush . | . . . . Escape Stasis . | . . . . Rewire . | . . . . Trap . | . . . . Miscellaneous . | . . . . Route ------- -11/Scrapyard -10/Materials (discovered 2 exits: *Mat / [*Min]) -9/Materials (discovered 2 exits: [*Mat] / *Sto) -9/Storage History --------- Turn | Location | Event 13 | -11/Scrapyard | Discovered new exit (range 15) 47 | -11/Scrapyard | Entered Materials 150 | -10/Materials | Discovered new exit (range 16) 313 | -10/Materials | Build established: Mutant 568 | -10/Materials | Discovered new exit (range 14) 597 | -10/Materials | Entered another Materials area 597 | -9/Materials | Evolved 2 slots: Utility x1, Weapon x1 959 | -9/Materials | Discovered new exit (range 7) 999 | -9/Materials | Discovered new exit (range 15) 1040 | -9/Materials | Entered Storage 1064 | -9/Storage | Lost 5 parts (1n4w) 1134 | -9/Storage | Core integrity fell below 50% 1145 | -9/Storage | Core integrity fell below 20% 1146 | -9/Storage | Self-destructed Last Messages --------------- Imp. Hover Unit destroyed. Spread Laser destroyed. Beam Cannon destroyed. Lgt. Assault Rifle destroyed. Imp. Ion Engine melted. Y-45 Defender destroyed. LOCATION=UNKNOWN GOAL=ESCAPE Connecting with Door Terminal... Current location identified: Storage Acquired Lgt. Cannon. O-16 Technician: "IFF HANDSHAKE FAILED. SECURING TERMINAL." ALERT: Hostiles spotted, dispatching reinforcements to Terminal S002. W-16 Scout sends out distress signal. Imp. Heat Sink destroyed. S-10 Pest knocked back. S-10 Pest destroyed. S-10 Pest knocked back. Lgt. Cannon destroyed. U-05 Engineer builds a Door. Map ----- +----------------------------------------------------+ | | | | | | | | | | | | | | | | | | | | | | | | | | | | | | | | | | | ?????????????????????????????????????????????????? | | ????????????????????????????????########?????##### | | ???????????????????????????????# #?????# | | ???????????????????????????????# """ #?????# | | ?????????????"?????????????????# """ #?????# | | ?????????????"" ############### """ #?????# | | ?????????????"" Y + #?????# | | ?????????????????# #####+######### | | ?????????????????# @ u##### # !! ###+# | | ?????????????????# Y + ## | | ?????????????????# ########ws # / [+ | | ?????????????????# ????????# """ # ## | | ?????????????????# #?????????# """ # ! ### # | | ?????????????????#???????????# """ ##+##+###?# # | | ?????????????????????????????# """ ##### # | | ?????????????????????????????# """ | | ?????????????????????????????# ##########+# | | ?????????????????????????????# #???????#T | | ?????????????????????????????# +???????##" | | ?????????????????????????????#/##+#####??????????! | | ?????????????????????????????? ??????????????????! | | ?????????????????????????????? ??????????????????# | | ?????????????????????????????????????????????????? | | ?????????????????????????????????????????????????? | | ?????????????????????????????????????????????????? | | ?????????????????????????????????????????????????? | | ?????????????????????????????????????????????????? | | ?????????????????????????????????????????????????? | | ?????????????????????????????????????????????????? | | ?????????????????????????????????????????????????? | | ?????????????????????????????????????????????????? | | ?????????????????????????????????????????????????? | | ?????????????????????????????????????????????????? | +----------------------------------------------------+ Best States ------------- Heat Dissipation 52 Energy Generation 10 Energy Capacity 250 Matter Stores 300 Matter Capacity 300 Sight Range 16 Robot Scan Range 13 Terrain Scan Density 10 Evasion (%) 53 Item Schematics ----------------- None Robot Schematics ------------------ None Fabricated ------------ Nothing Alien Tech Used ----------------- None Achievements -------------- Everything Is Under Control Challenges ------------ None Game ------ Seed DeepStormExtractor Manual? 0 Play Time 00:35:51 Cumulative 4.4 hours Start 2021.01.10 @ 22:42:34 End 2021.01.10 @ 23:21:13 Sessions 1 Manual Loads 0 Difficulty Rogue Special Mode None Game No. 4 Rogue 4 Adventurer 0 Explorer 0 Win Type - Total 0 Types 0/0/0/0/0/0/0/0/0 Lore% 2 Gallery% 4 Achievement% 5 Wizard Run 0 Options --------- ASCII 0 Keyboard 0 Movement Mouse Keybinds 0 Fullscreen 1 Font 24/Smallcaps Map View 76x50 Tactical HUD 0 Map Filters NONE Filters NONE Steam 1 RUN: 4a8ae1f7-56f5-40d0-b470-b86447420f86